Cogmind - Beta 16 @@@ ROGUE MODE // 2025.11.30 @ 17:07:16 Player: ChromeKnight Result: Destroyed by G-73 Enforcer with Heavy Laser Performance ------------- Evolutions (8) 4000 Regions Visited (22) 4400 Robots Destroyed (286) 1430 Value Destroyed (15457) 15457 Prototype IDs (17) 340 Alien Tech Used (2) 400 Bonus (12965) 12965 TOTAL SCORE: 38992 Bonus ------- High Alert Combat Kills 1889 Follower Combat Kills 3536 Entered Garrisons 1600 Used RIF Installer 6000 Friendly Fire -60 Cogmind --------- Core Integrity 0/1450 Matter 108/300 Energy 74/100 System Corruption 8% Temperature Cool (0) Movement Core (50) Location -2/Garrison Parts ------- > --- POWER (1) -------- (None) > --- PROPULSION (2) --- (None) > --- UTILITY (17) ----- Relay Coupler [NC] (47) Relay Coupler [C] (76) Relay Coupler [Specialist] (40) > --- WEAPON (3) ------- (None) > --- INVENTORY (5) ---- Subatomic Replicator Heavy Mass Driver Core Stripper Peak State ------------ > --- POWER ------------ Reinforced Fission Core > --- PROPULSION ------- Armored Huge Wheel > --- UTILITY ---------- Cryofiber Web Cargo Storage Unit Long-range Sensor Array Improved Signal Interpreter Advanced Targeting Computer Experimental Core Analyzer Layered Heavy Armor Plating Advanced Hacking Suite Relay Coupler [NC] Relay Coupler [C] Relay Coupler [Sentry] Relay Coupler [Hunter] > --- WEAPON ----------- Heavy Linear Accelerator Improved Remote Datajack > --- INVENTORY -------- Quantum Reactor Advanced Heat Sink Long-range Sensor Array Improved Weapon Cycler Layered Heavy Armor Plating Layered Heavy Armor Plating Graphene Brace Relay Coupler [C] Relay Coupler [Sentry] Relay Coupler [Specialist] Relay Coupler [Heavy] Advanced System Restoration Module Mini Drone Bay Dimensional Node Initializer Transdimensional Reconstructor Transdimensional Reconstructor Transdimensional Reconstructor High-powered Transdimensional Reconstructor Core Reset Matrix Subatomic Replicator Compact HERF Cannon Heavy Linear Accelerator Improved Remote Datajack Advanced Remote Datajack Advanced Remote Datajack Improved Plasma Cutter Katana [Rating: 124] Favorites ----------- Power Nuclear Core Engine Reinforced Deuterium Engine Power Core Nuclear Core Reactor Hybrid Antimatter Reactor Propulsion Armored Huge Wheel Wheel Armored Huge Wheel Utility Cryofiber Web Device Cryofiber Web Storage Huge Storage Unit Processor Advanced Targeting Computer Hackware Relay Coupler [NC] Protection Layered Heavy Armor Plating Weapon Advanced Beam Rifle Energy Gun Advanced Beam Rifle Energy Cannon Compact HERF Cannon Ballistic Gun Assault Rifle Ballistic Cannon Heavy Linear Accelerator Launcher Grenade Launcher Special Weapon Remote Datajack Impact Weapon Heavy Hammer Slashing Weapon Katana Special Melee Weapon Improved Datajack Build | -11 -10 -10 -9 -9 -8 -8 -8 -8 -7 -7 -7 -7 -6 -6 -5 -5 -4 -4 -3 -3 -2 -2 ------- Run | Yrd Mat Min Mat Min Mat Gar Mat Gar Fac Gar Fac Gar Fac Gar Fac Gar Fac Gar Res Qua Res Gar Slots Evolved 16 | . . . 2 . 2 . . . 2 . . . 2 . 2 . 2 . 2 . 2 . Power . | . . . . . . . . . . . . . . . . . . . . . . . Propulsion . | . . . . . . . . . . . . . . . . . . . . . . . Utility 15 | . . . 2 . 1 . . . 2 . . . 2 . 2 . 2 . 2 . 2 . Weapon 1 | . . . . . 1 . . . . . . . . . . . . . . . . . Parts Attached 224 | 7 6 4 21 . 17 5 9 9 5 18 . 6 15 10 5 9 8 14 4 15 33 4 Power 18 | 1 1 . 3 . . 1 . 1 . 2 . 1 1 2 . . 1 . . 1 3 . Engine 7 | 1 . . 1 . . . . . . 1 . 1 1 1 . . . . . . 1 . Core 7 | . 1 . 2 . . 1 . 1 . 1 . . . . . . 1 . . . . . Reactor 4 | . . . . . . . . . . . . . . 1 . . . . . 1 2 . Propulsion 33 | 2 2 . 5 . 3 1 2 3 . 3 . 1 . 1 . 1 . 1 . 2 6 . Treads . | . . . . . . . . . . . . . . . . . . . . . . . Leg . | . . . . . . . . . . . . . . . . . . . . . . . Wheel 33 | 2 2 . 5 . 3 1 2 3 . 3 . 1 . 1 . 1 . 1 . 2 6 . Hover . | . . . . . . . . . . . . . . . . . . . . . . . Flight . | . . . . . . . . . . . . . . . . . . . . . . . Utility 113 | 1 3 . 7 . 4 3 3 5 3 9 . 3 11 3 5 8 6 11 4 7 14 3 Device 36 | . . . 1 . 3 1 1 3 . 2 . 1 3 1 3 2 3 1 1 4 6 . Storage 9 | 1 2 . 1 . . . . . . . . . . . . . 1 1 . . 3 . Processor 11 | . 1 . . . . 1 . 1 1 1 . . 1 . . . . . 1 1 3 . Hackware 35 | . . . 1 . . . 2 . 2 2 . . 4 . 2 4 1 9 2 1 2 3 Protection 22 | . . . 4 . 1 1 . 1 . 4 . 2 3 2 . 2 1 . . 1 . . Artifact . | . . . . . . . . . . . . . . . . . . . . . . . Weapon 60 | 3 . 4 6 . 10 . 4 . 2 4 . 1 3 4 . . 1 2 . 5 10 1 Energy Gun 24 | 1 . . 5 . 7 . 3 . . 4 . 1 1 2 . . . . . . . . Energy Cannon 2 | . . . . . . . . . . . . . . . . . . . . 1 1 . Ballistic Gun 11 | 2 . 1 . . 1 . . . . . . . . . . . . . . . 7 . Ballistic Cannon 8 | . . 1 . . . . . . . . . . . 2 . . 1 . . 2 1 1 Launcher 3 | . . 2 . . 1 . . . . . . . . . . . . . . . . . Special Weapon 5 | . . . . . . . . . . . . . 2 . . . . 2 . . 1 . Impact Weapon 2 | . . . 1 . 1 . . . . . . . . . . . . . . . . . Slashing Weapon 3 | . . . . . . . . . 1 . . . . . . . . . . 2 . . Piercing Weapon . | . . . . . . . . . . . . . . . . . . . . . . . Special Melee Weapon 2 | . . . . . . . 1 . 1 . . . . . . . . . . . . . Unidentified Prototypes 13 | . . . 1 . 3 . 2 . . . . . . . . . 1 . 1 4 1 . Corrupted Parts 2 | . . . . . . . . . . . . . . . . . . . . 2 . . System Corruption 6 | . . . . . . . . . . . . . . . . . . . . 6 . . Parts Lost 79 | . 1 3 12 . . 1 . 6 2 2 . 1 6 3 . . . . . 22 19 1 Power 8 | . 1 . 2 . . . . 1 . 1 . . . . . . . . . 2 1 . Propulsion 19 | . . 2 5 . . 1 . 2 . . . . . 1 . . . . . 3 5 . Utility 33 | . . . 3 . . . . 1 1 1 . 1 5 1 . . . . . 12 8 . Weapon 19 | . . 1 2 . . . . 2 1 . . . 1 1 . . . . . 5 5 1 Highest Loss Streak 7 | . 1 2 5 . . 1 . 3 1 2 . 1 3 1 . . . . . 5 7 1 To Critical Strikes . | . . . . . . . . . . . . . . . . . . . . . . . Average Backups 19 | . 10 15 13 14 21 21 22 20 20 22 24 23 21 20 20 19 18 17 16 20 4 6 Power . | . . . 1 1 1 . . . . 1 2 1 1 1 2 1 1 1 1 . . . Propulsion 2 | . 5 8 5 3 6 5 4 2 2 1 1 1 1 . . . . . . . . . Utility 9 | . 2 3 3 3 5 6 8 9 12 13 13 13 12 11 12 12 12 12 11 9 . . Weapon 3 | . 2 2 1 5 6 6 6 4 2 3 5 4 4 3 4 3 3 1 1 2 1 3 Tool/Special . | . . . . . . . . . . . . . . . . . . . . . . . Unused Backups 63 | . . . 1 . 8 . 2 4 . 7 . 2 . 2 1 4 . 16 . 10 1 5 Power 4 | . . . . . . . . . . 1 . 1 . . . 1 . 1 . . . . Propulsion 3 | . . . . . . . . 2 . 1 . . . . . . . . . . . . Utility 34 | . . . 1 . 2 . . 1 . 5 . 1 . 2 . 3 . 14 . 5 . . Weapon 12 | . . . . . 6 . . 1 . . . . . . . . . 1 . . . 4 Tool/Special 10 | . . . . . . . 2 . . . . . . . 1 . . . . 5 1 1 Average Slot Usage (%) 81 | . 97 100 88 100 88 89 90 88 83 83 84 84 89 86 79 81 79 82 79 65 39 9 Engine 1 | . 7 . 1 . . . . . . 5 7 7 6 5 . . . . . . . . Core 4 | . 6 14 9 11 9 9 9 8 7 1 . . . . . . 3 5 4 1 . . Wheel 9 | . 27 28 20 22 18 17 18 16 7 6 7 7 6 5 5 5 5 5 4 1 3 . Device 12 | . . . 1 11 15 18 12 17 14 14 15 15 17 12 16 11 13 15 13 13 4 . Storage 6 | . 14 14 11 11 9 9 9 9 7 7 7 7 6 6 5 5 5 5 4 3 2 3 Processor 8 | . 12 14 4 . . . . . 6 7 7 7 8 13 11 11 10 10 12 13 8 . Hackware 11 | . . . 7 . . . 5 . 7 7 7 7 13 13 15 22 23 26 24 19 8 1 Protection 6 | . . . 14 22 10 9 9 8 7 6 7 9 9 11 5 5 4 4 4 2 . . Energy Gun 10 | . . 2 7 22 26 26 25 26 20 22 23 20 18 7 . . . . . . . . Ballistic Gun 1 | . 28 22 . . . . . . . . . . . . . . . . . . 4 . Ballistic Cannon 1 | . . . 1 . . . . . . . . . . 3 5 4 5 4 4 3 . 3 Special Weapon 1 | . . . . . . . . . . . . . 1 3 5 4 5 4 3 . 1 . Peak Build Rating 124 | 6 11 12 19 19 38 39 40 46 51 59 57 63 68 75 85 93 105 105 117 124 88 42 Average Rating 62 | 4 9 11 17 19 33 37 37 38 48 54 57 57 61 66 82 90 95 101 114 96 48 22 On Entrance 48 | . 6 11 12 19 19 38 38 38 46 50 57 57 60 60 75 85 92 97 93 110 30 11 Avg Prop Armor Cover (%) . | . . . . . . . . . . . . . . . . . . . . . . . Naked Turns 28 | . . . . . . . . . . . . . . . . . . . . . 28 . Heaviest Build 216 | 14 49 49 99 99 119 116 115 116 120 132 127 127 127 139 140 144 155 193 216 216 58 40 Greatest Support 32 | 32 32 32 32 20 26 26 26 28 28 28 28 28 28 28 28 28 28 28 28 28 20 3 Greatest Overweight (x) 71 | 1 1 1 9 4 5 11 4 7 4 4 4 4 4 4 4 5 5 6 7 71 6 13 Average Overweight (x) 4 | . . 1 3 4 4 4 4 4 4 3 4 3 3 3 4 4 4 4 7 17 1 6 Largest Inventory Capacity 30 | 8 20 20 25 25 25 25 25 25 25 25 25 25 25 25 25 25 25 30 30 30 15 15 Average Capacity 24 | 6 16 20 24 25 25 25 25 25 25 25 25 25 25 25 25 25 23 21 30 29 6 13 Most Carried 30 | 1 16 17 16 19 25 25 25 25 24 25 25 25 25 25 25 25 25 22 21 30 8 11 Average Carried 21 | . 10 15 13 14 24 24 24 22 23 24 25 24 22 23 24 24 22 20 19 22 5 9 Final Capacity 30 | 8 20 20 25 25 25 25 25 25 25 25 25 25 25 25 25 25 20 30 30 5 5 5 Final Carried 25 | 1 16 14 14 19 25 25 25 25 23 25 25 25 21 25 25 25 20 22 20 5 5 5 Class Distribution -------------------- 31% | Botlord-Gunner 17% | Botlord-Mutant 12% | Tank 12% | Mutant 6% | Botlord-Tank 5% | Botlord-Skirmisher 5% | Scavenger-Mutant 3% | Scavenger-Tank Dominant Class ---------------- Mutant | -10/Materials Mutant | -10/Mines Mutant | -9/Materials Scavenger-Mutant | -9/Mines Scavenger-Tank | -8/Materials Tank | -8/Garrison Tank | -8/Materials Tank | -8/Garrison Botlord-Gunner | -7/Factory Botlord-Gunner | -7/Garrison Botlord-Gunner | -7/Factory Botlord-Gunner | -7/Garrison Botlord-Tank | -6/Factory Botlord-Tank | -6/Garrison Botlord-Skirmisher | -5/Factory Botlord-Gunner | -5/Garrison Botlord-Gunner | -4/Factory Botlord-Gunner | -4/Garrison Botlord-Gunner | -3/Research Botlord-Mutant | -3/Quarantine Scavenger-Gunner | -2/Research Mutant | -2/Garrison Resources | -11 -10 -10 -9 -9 -8 -8 -8 -8 -7 -7 -7 -7 -6 -6 -5 -5 -4 -4 -3 -3 -2 -2 ----------- Run | Yrd Mat Min Mat Min Mat Gar Mat Gar Fac Gar Fac Gar Fac Gar Fac Gar Fac Gar Res Qua Res Gar Matter Collected 7400 | 225 383 163 390 . 276 90 159 175 87 290 . 127 245 482 428 723 265 754 428 1000 710 . Remotely . | . . . . . . . . . . . . . . . . . . . . . . . Salvage Created 12447 | . 455 130 848 258 1097 608 836 1063 304 1319 . 1588 839 136 180 435 311 879 104 634 423 . Parts 579 | . 34 15 47 18 70 26 32 32 10 51 . 63 48 8 7 17 11 39 . 24 27 . Haulers Intercepted 7 | . 1 . 4 . 1 . 1 . . . . . . . . . . . . . . . Recyclers Shooed 8 | . 4 . 1 . 1 . . . . . . . 1 . 1 . . . . . . . Parts Field Recycled . | . . . . . . . . . . . . . . . . . . . . . . . Retrieved Matter . | . . . . . . . . . . . . . . . . . . . . . . . Parts Self-Destructed . | . . . . . . . . . . . . . . . . . . . . . . . Prevented . | . . . . . . . . . . . . . . . . . . . . . . . Parts Restored . | . . . . . . . . . . . . . . . . . . . . . . . Kills | -11 -10 -10 -9 -9 -8 -8 -8 -8 -7 -7 -7 -7 -6 -6 -5 -5 -4 -4 -3 -3 -2 -2 ------- Run | Yrd Mat Min Mat Min Mat Gar Mat Gar Fac Gar Fac Gar Fac Gar Fac Gar Fac Gar Res Qua Res Gar Combat Hostiles Destroyed 233 | . 7 8 16 7 25 16 8 18 6 23 . 14 17 8 5 14 4 13 3 16 5 . Melee 4 | . . . 4 . . . . . . . . . . . . . . . . . . . Guns 138 | . 7 2 2 7 19 16 8 18 5 20 . 14 17 1 . . . . . . 2 . Cannons 67 | . . . 4 . . . . . . . . . . 7 4 14 4 13 2 16 3 . AOE 15 | . . 6 1 . 4 . . . . 3 . . . . 1 . . . . . . . Classes Destroyed 18 | . 7 1 2 1 1 1 1 1 . . . 1 . . . 1 . 1 . . . . Worker 9 | . 3 . . 2 2 . . . . . . . 1 . . . . . . . 1 . Builder 7 | . 1 . 1 . 1 . 1 . . . . . . . . . . . . . 3 . Tunneler 2 | . . 1 . 1 . . . . . . . . . . . . . . . . . . Hauler 7 | . 1 . 4 . 1 . 1 . . . . . . . . . . . . . . . Recycler 7 | . . . . 1 1 . 3 . . . . . . . 1 . 1 . . . . . Mechanic 2 | . . . 1 . . . . . 1 . . . . . . . . . . . . . Operator 3 | . 1 . 1 . . . . . . . . . . . . . . . . . 1 . Watcher 15 | . 3 . 3 . 1 . 3 . 1 . . 1 2 . . . . . . 1 . . Swarmer 73 | . 3 6 . 7 11 7 . 4 2 7 . 5 8 4 1 6 . . 1 1 . . Cutter 10 | . . . . . . . . . . . . 1 . 2 . 4 . 3 . . . . Saboteur 2 | . . . . . . . . . . . . . . . . 2 . . . . . . Grunt 61 | . 4 2 11 . 7 4 . 9 . 14 . 1 1 1 . . 2 2 . 3 . . Brawler 6 | . . . . . 1 1 . . . 2 . . 2 . . . . . . . . . Duelist 4 | . . . . . . 1 1 1 . 1 . . . . . . . . . . . . Sentry 28 | . . . 5 . 6 3 6 . 1 . . 2 3 1 . . . 1 . . . . Hunter 9 | . . . . . . . 1 . 2 . . 2 1 . . 1 . . . 1 1 . Programmer 33 | . . . . . . . . 4 1 . . 3 2 . 4 1 2 6 1 5 4 . Behemoth 2 | . . . . . . . . . . . . . . . . . . 1 1 . . . Quarantine Guard 6 | . . . . . . . . . . . . . . . . . . . . 6 . . Best Kill Streak 6 | . 3 4 5 4 6 6 5 4 2 6 . 3 4 5 2 4 2 3 1 3 4 . Combat Bots Only 6 | . 2 3 3 4 6 6 2 4 2 6 . 3 4 5 2 4 2 3 1 3 4 . Max Kills in Single Turn 3 | . 1 2 1 1 3 2 2 1 1 2 . 2 1 1 1 1 1 1 1 1 1 . Gunslinging 1 | . . . . . 1 1 . . . 1 . 1 . . . . . . . . . . Exploded 3 | . . 2 1 . 3 . . . . 2 . . . . 1 . . . . . . . Melee 1 | . . . 1 . . . . . . . . . . . . . . . . . . . Uniques/NPCs Destroyed . | . . . . . . . . . . . . . . . . . . . . . . . Combat | -11 -10 -10 -9 -9 -8 -8 -8 -8 -7 -7 -7 -7 -6 -6 -5 -5 -4 -4 -3 -3 -2 -2 -------- Run | Yrd Mat Min Mat Min Mat Gar Mat Gar Fac Gar Fac Gar Fac Gar Fac Gar Fac Gar Res Qua Res Gar Hostile Shots Fired 1639 | . 39 31 134 30 78 51 20 132 89 90 . 94 117 108 29 82 34 46 28 173 184 50 Missed 484 | . 12 5 33 9 28 19 5 34 27 21 . 30 38 31 7 28 10 12 8 49 69 9 Hits 1155 | . 27 26 101 21 50 32 15 98 62 69 . 64 79 77 22 54 24 34 20 124 115 41 Melee 26 | . . . . . . 6 . 3 . 1 . . 4 . . 9 . 3 . . . . Projectile 1129 | . 27 26 101 21 50 26 15 95 62 68 . 64 75 77 22 45 24 31 20 124 115 41 AOE 8 | . . 5 . . . . . . . . . 2 . 1 . . . . . . . . Critical Strikes 42 | . . . 4 . 1 1 1 5 . 3 . 1 1 . 1 2 4 2 1 10 3 2 Part Disruptions 2 | . . . . . . . . . . . . 1 . . . . . . . . 1 . Damage Taken 20336 | . 325 589 1317 188 607 468 321 1315 893 1092 . 705 1163 796 587 929 489 545 529 4226 2745 507 Core 4114 | . 58 173 289 43 38 83 66 91 60 115 . 61 191 97 34 60 57 92 107 948 1242 209 Absorbed by Shields 774 | . . . . . . 4 . 33 . 21 . . . 68 . 63 . 153 . . . 432 Regen/Repaired (Parts) 600 | . 20 . . . 64 . . . 233 . . . . . . . . . 283 . . . Core Remaining (%) 54 | 100 . 7 . 17 . . . 49 . . . 66 . 66 . 90 . 87 . 7 . . Volleys Fired 873 | . 51 21 36 22 60 33 29 75 23 56 . 40 67 31 33 49 15 57 57 57 58 3 Largest 3 | . 2 2 2 2 3 3 3 3 3 3 . 3 3 3 1 1 1 1 1 1 3 1 Hottest 263 | . 40 70 96 96 183 183 183 183 177 231 . 231 231 263 70 70 70 70 70 94 180 65 Shots Fired 1740 | . 102 35 60 44 176 99 86 221 64 159 . 126 139 48 34 51 15 57 57 60 104 3 Gun 1360 | . 102 29 37 44 174 99 86 221 63 157 . 126 120 24 . . . . . . 78 . Cannon 243 | . . . 21 . . . . . . . . . . 22 28 38 13 31 25 49 15 1 Launcher 13 | . . 6 2 . 2 . . . 1 2 . . . . . . . . . . . . Special 124 | . . . . . . . . . . . . . 19 2 6 13 2 26 32 11 11 2 Kinetic 426 | . 102 20 21 . . . . . . . . . . 22 28 38 13 31 25 47 78 1 Thermal 1163 | . . 9 25 44 174 99 86 221 63 157 . 126 120 24 . . . . . . 15 . Explosive 13 | . . 6 2 . 2 . . . 1 2 . . . . . . . . . . . . Electromagnetic 14 | . . . 12 . . . . . . . . . . . . . . . . 2 . . Robot Hit Streak 25 | . 10 4 5 8 16 6 12 25 9 15 . 24 23 7 15 10 7 14 15 25 15 1 Robot Miss Streak 9 | . 4 2 3 3 7 4 5 9 3 3 . 4 4 3 2 4 1 1 4 3 5 1 Penetration Max . | . . . . . . . . . . . . . . . . . . . . . . . Secondary Targets 22 | . . . . . 2 4 . 5 . 6 . 2 3 . . . . . . . . . Max Gunslinging Chain 1 | . . . . . 1 1 . 1 . 1 . 1 1 . . . . . . . . . Autonomous 6 | . . . . . . . . . . . . 6 . . . . . . . . . . Shots Hit Robots 1197 | . 57 19 73 27 107 53 46 138 45 120 . 94 98 31 19 45 12 61 37 44 70 1 Core Hits 463 | . 27 11 27 12 45 20 22 52 14 54 . 46 32 10 3 14 5 18 2 25 24 . Critical Kills 3 | . . . 3 . . . . . . . . . . . . . . . . . . . Critical Parts Destroyed 8 | . . . 7 . . . . . . . . . . . . . . . . . 1 . Critical Strikes 75 | . . . 10 . 10 5 6 6 9 2 . 4 3 2 3 2 2 3 . 4 4 . Burn 43 | . . . . . 10 5 6 6 9 1 . 3 3 . . . . . . . . . Destroy 3 | . . . 2 . . . . . . . . . . . . . . . . . 1 . Blast 14 | . . . . . . . . . . . . . . 2 3 1 2 2 . 4 . . Smash 8 | . . . 8 . . . . . . . . . . . . . . . . . . . Sever 7 | . . . . . . . . . . 1 . 1 . . . 1 . 1 . . 3 . Melee Attacks 145 | . . . 54 . 2 5 3 . 7 14 . 18 . . . 10 . 19 . 5 8 . Impact 61 | . . . 54 . 2 5 . . . . . . . . . . . . . . . . Slashing 76 | . . . . . . . . . 2 14 . 18 . . . 10 . 19 . 5 8 . Piercing . | . . . . . . . . . . . . . . . . . . . . . . . Sneak Attacks 6 | . . . 4 . . . . . 2 . . . . . . . . . . . . . Combat Hostiles 1 | . . . 1 . . . . . . . . . . . . . . . . . . . Follow-up Attacks . | . . . . . . . . . . . . . . . . . . . . . . . Damage Inflicted 34372 | . 733 556 2189 352 2286 1186 992 2879 1011 3093 . 3237 1872 1519 1250 2281 850 2585 921 2486 2094 . Guns 16905 | . 733 184 359 352 1902 1186 992 2879 818 2142 . 2111 1797 420 . . . . . . 1030 . Cannons 10968 | . . . 384 . . . . . . . . . . 1099 1157 1803 850 1655 885 2458 677 . Explosions 1563 | . . 372 125 . 384 . . . 193 295 . . 75 . 93 . . . . 26 . . Melee 4898 | . . . 1321 . . . . . . 656 . 1126 . . . 478 . 930 . . 387 . Ramming 38 | . . . . . . . . . . . . . . . . . . . 36 2 . . Kinetic 12126 | . 733 107 384 . . . . . . . . . . 1099 1157 1803 850 1655 885 2423 1030 . Thermal 15560 | . . 77 207 352 1902 1186 992 2879 818 2142 . 2111 1797 420 . . . . . . 677 . Explosive 1563 | . . 372 125 . 384 . . . 193 295 . . 75 . 93 . . . . 26 . . Electromagnetic 187 | . . . 152 . . . . . . . . . . . . . . . . 35 . . Impact 1321 | . . . 1321 . . . . . . . . . . . . . . . . . . . Slashing 3577 | . . . . . . . . . . 656 . 1126 . . . 478 . 930 . . 387 . Piercing . | . . . . . . . . . . . . . . . . . . . . . . . Highest Corruption 8 | . . . . . . . 2 5 1 1 1 1 2 2 4 4 1 2 4 8 8 8 Average Corruption 2 | . . . . . . . 1 4 1 1 1 1 1 2 2 4 1 1 3 2 7 8 Corruption Purged 14 | . . . . . . . 2 . . . . . . . . . . . 4 8 . . Corruption Blocked . | . . . . . . . . . . . . . . . . . . . . . . . Effects 215 | . . . . . . . 5 22 1 10 . 8 11 16 14 26 5 28 11 41 6 11 Message Errors 56 | . . . . . . . 1 6 . 3 . 3 5 3 1 5 1 12 2 7 2 5 Matter Fused 58 | . . . . . . . 1 9 . 2 . 3 2 7 4 5 . 6 3 10 3 3 Heat Flow Errors 22 | . . . . . . . . 1 . . . 1 1 3 1 3 1 4 1 5 . 1 Energy Discharges 32 | . . . . . . . 3 2 . 2 . 1 1 1 4 5 1 4 2 5 . 1 Parts Rejected 1 | . . . . . . . . . . . . . . . . . . . 1 . . . Parts Fused 1 | . . . . . . . . 1 . . . . . . . . . . . . . . Data Loss (minor) 22 | . . . . . . . . 1 . 2 . . 2 . 2 3 2 1 2 5 1 1 Data Loss (major) 5 | . . . . . . . . . . . . . . . 1 . . 1 . 3 . . Misfires 9 | . . . . . . . . . 1 1 . . . 1 1 2 . . . 3 . . Alerts 7 | . . . . . . . . . . . . . . 1 . 3 . . . 3 . . Weapon Failures 2 | . . . . . . . . 2 . . . . . . . . . . . . . . Overload Shots . | . . . . . . . . . . . . . . . . . . . . . . . Overflow Damage 2051 | . . 8 478 . . . . . 1 33 . . 28 30 433 453 74 258 99 141 15 . Projectiles 1503 | . . . . . . . . . . . . . . 30 433 453 74 258 99 141 15 . Explosions 66 | . . 8 12 . . . . . 1 17 . . 28 . . . . . . . . . Melee 482 | . . . 466 . . . . . . 16 . . . . . . . . . . . . Knockbacks 33 | . . . 6 . . . . . . . . . . . 8 6 3 2 5 3 . . Impact 3 | . . . 3 . . . . . . . . . . . . . . . . . . . Kinetic 27 | . . . 3 . . . . . . . . . . . 7 5 3 2 4 3 . . Secondary 3 | . . . . . . . . . . . . . . . 1 1 . . 1 . . . Self-Inflicted Damage 613 | . . 77 . . . . . . 202 20 . . 86 . 126 . . . 18 84 . . Shots 12 | . . 4 . . . . . . 3 1 . . 1 . 2 . . . . 1 . . Rammed 4 | . . . . . . . . . . 1 . . . . . . . . 2 1 . . Targets Rammed 4 | . . . . . . . . . . 1 . . . . . . . . 2 1 . . Kicked . | . . . . . . . . . . . . . . . . . . . . . . . Crushed . | . . . . . . . . . . . . . . . . . . . . . . . Highest Temperature 606 | . 3 211 233 . 306 212 398 606 82 227 . 590 550 77 125 96 129 110 114 344 66 245 Average Temperature 115 | . 2 72 92 . 75 83 129 175 33 72 . 170 208 28 91 59 70 44 65 105 14 147 Received Heat Transfer 3109 | . 141 117 651 . 189 78 63 322 36 533 . 132 129 100 9 13 106 29 30 287 117 27 Effects 15 | . . . 1 . . . 2 5 . . . . 6 . . . . . . 1 . . Shutdowns 1 | . . . . . . . 1 . . . . . . . . . . . . . . . Energy Bleed 4 | . . . 1 . . . 1 1 . . . . . . . . . . . 1 . . Interference 3 | . . . . . . . . 3 . . . . . . . . . . . . . . Damage (minor) 1 | . . . . . . . . 1 . . . . . . . . . . . . . . Damage (major) 6 | . . . . . . . . . . . . . 6 . . . . . . . . . Siege Activations . | . . . . . . . . . . . . . . . . . . . . . . . Martial Activations . | . . . . . . . . . . . . . . . . . . . . . . . Shielding Activations . | . . . . . . . . . . . . . . . . . . . . . . . Robots Disrupted . | . . . . . . . . . . . . . . . . . . . . . . . Combat Hostiles . | . . . . . . . . . . . . . . . . . . . . . . . Robots Corrupted 9 | . . . 8 . . . . . . . . . . . . . . . 1 . . . Combat Hostiles 6 | . . . 5 . . . . . . . . . . . . . . . 1 . . . Parts Fried 16 | . . . 12 . . . . . . . . . 1 . . 1 . . 2 . . . Impact Corruptions 23 | . . . 20 . . . . . . . . . . . . 2 . . 1 . . . Robots Melted 3 | . . . . . 2 . . . 1 . . . . . . . . . . . . . Combat Hostiles 3 | . . . . . 2 . . . 1 . . . . . . . . . . . . . Parts Melted 81 | . . . 1 1 15 4 8 17 4 6 . 7 12 . . . . . . 2 4 . Heat Transferred 30385 | . . 222 508 855 4810 2421 2220 5027 2183 4033 . 3272 3696 657 . . . . . . 481 . Parts Sabotaged 1 | . . . . . . . . . . . . . . . . 1 . . . . . . Parts Stolen . | . . . . . . . . . . . . . . . . . . . . . . . Parts Stripped . | . . . . . . . . . . . . . . . . . . . . . . . Power Chain Reactions . | . . . . . . . . . . . . . . . . . . . . . . . Alert | -11 -10 -10 -9 -9 -8 -8 -8 -8 -7 -7 -7 -7 -6 -6 -5 -5 -4 -4 -3 -3 -2 -2 ------- Run | Yrd Mat Min Mat Min Mat Gar Mat Gar Fac Gar Fac Gar Fac Gar Fac Gar Fac Gar Res Qua Res Gar Maximum Alert Level 5 | . . . 1 . . 3 2 3 1 4 3 4 3 2 1 3 3 5 4 2 . . Low Security (%) 37 | 100 100 100 84 100 100 10 30 13 73 17 . . 58 21 69 12 . . . . 100 100 Level 1 21 | . . . 15 . . 26 60 19 26 10 . . . 44 30 8 . . . 69 . . Level 2 19 | . . . . . . 16 8 62 . 22 . 25 35 34 . 69 49 4 . 30 . . Level 3 12 | . . . . . . 46 . 4 . 18 100 54 5 . . 9 50 40 37 . . . Level 4 7 | . . . . . . . . . . 30 . 19 . . . . . 26 62 . . . Level 5 2 | . . . . . . . . . . . . . . . . . . 27 . . . . High Security . | . . . . . . . . . . . . . . . . . . . . . . . Max Security . | . . . . . . . . . . . . . . . . . . . . . . . Peak Influence 2240 | . 70 144 240 151 196 827 423 721 378 1417 743 1163 742 609 334 885 890 2240 1518 643 118 83 Initial 1260 | . . . 32 96 . 121 403 111 378 128 743 513 610 70 319 106 464 564 1260 460 103 33 Average 440 | . 17 38 75 64 74 529 275 420 164 721 741 868 311 365 126 563 711 1312 1181 371 30 41 Influence Increases 14001 | . 259 276 680 186 719 736 323 670 332 1429 . 800 822 669 383 819 941 1756 877 975 294 55 Destroy 0b10 Robot/C 6740 | . 140 160 320 140 500 380 160 360 120 700 . 500 440 400 120 540 320 560 320 420 140 . Destroy 0b10 Robot/NC 400 | . 45 5 50 20 30 . 40 15 5 15 . 45 15 . 5 15 5 20 35 5 30 . Destroy Leader 1012 | . 38 30 104 20 114 20 88 30 52 50 . 40 94 20 20 40 50 20 50 102 30 . Allied During Kill 1789 | . . . . . . 9 . . . 200 . 118 95 111 11 140 316 254 310 215 10 . Successful Hack 190 | . 20 . 25 6 15 . 4 . . . . 7 38 16 7 12 21 12 7 . . . Select Force Hacks 30 | . . . . . . . . . . . . . 30 . . . . . . . . . Disable Machine 525 | . . 45 15 . 15 . 15 . 45 . . . 45 15 90 . 105 . 30 105 . . Anti-Garrison Action 1900 | . . . . . . 250 . 200 . 450 . 50 . 50 . 50 . 800 . . . 50 Destroy Structure 800 | . 1 36 16 . 15 17 1 5 35 14 . 10 35 12 100 22 124 90 110 128 24 5 Partial Spotted 45 | . . . 15 . . . . . . . . . . . 15 . . . . . 15 . Lose Combat Pursuer 570 | . 15 . 135 . 30 60 15 60 75 . . 30 30 45 15 . . . 15 . 45 . Influence Decreases 13923 | . 259 192 517 433 532 96 978 121 869 196 684 370 1884 161 840 86 1019 323 2298 1609 434 22 Entered New Map 5064 | . . . 52 151 . 66 424 61 343 56 674 220 553 31 290 46 421 243 980 359 82 12 Time Decay 5069 | . 249 162 362 282 532 . 374 . 356 . 10 . 514 . 490 . 368 . 428 770 172 . Lost Part 730 | . 10 30 103 . . 10 . 60 20 20 . 10 60 30 . . . . . 220 147 10 Lost Ally 1423 | . . . . . . 20 30 . . 120 . 140 120 100 60 40 80 80 340 260 33 . Purge Threat 1637 | . . . . . . . 150 . 150 . . . 637 . . . 150 . 550 . . . Squads Dispatched 28 | . . . 2 . 3 . . . 3 . . . 4 . 3 . 5 . 3 2 3 . Investigation 5 | . . . 1 . 1 . . . 1 . . . 1 . . . . . . . 1 . Extermination 10 | . . . . . . . . . 1 . . . 1 . 3 . 2 . . 2 1 . Reinforcement 10 | . . . 1 . 2 . . . 1 . . . 2 . . . 1 . 2 . 1 . Assault 3 | . . . . . . . . . . . . . . . . . 2 . 1 . . . Garrison . | . . . . . . . . . . . . . . . . . . . . . . . Intercept . | . . . . . . . . . . . . . . . . . . . . . . . Searches Triggered . | . . . . . . . . . . . . . . . . . . . . . . . Construction Impeded 2 | . . . . . 1 . . . . . . . . . . . . . 1 . . . Haulers Reinforced 1 | . . . . . . . . . . . . . . . . . . . 1 . . . Active Scanning Responses . | . . . . . . . . . . . . . . . . . . . . . . . Cargo Convoy Interrupts . | . . . . . . . . . . . . . . . . . . . . . . . Stealth | -11 -10 -10 -9 -9 -8 -8 -8 -8 -7 -7 -7 -7 -6 -6 -5 -5 -4 -4 -3 -3 -2 -2 --------- Run | Yrd Mat Min Mat Min Mat Gar Mat Gar Fac Gar Fac Gar Fac Gar Fac Gar Fac Gar Res Qua Res Gar Distress Signals 9 | . . . 1 . . . 4 . . . . . 3 . . . . . . . 1 . Communications Jammed 60 | . . . . . . . . . . . . . 40 . . . . . 3 17 . . Distress Signals 60 | . . . . . . . . . . . . . 40 . . . . . 3 17 . . Times Spotted 493 | . 14 10 31 7 36 19 18 20 21 36 . 25 35 27 10 34 13 37 30 37 25 8 Peak Tracking Total 8 | . 3 3 6 4 5 5 5 5 3 4 . 5 7 6 3 8 4 4 4 4 7 6 Tactical Retreats 29 | . 1 . 6 . 2 2 1 3 4 . . 2 2 3 1 . . . 1 . 1 . Traps | -11 -10 -10 -9 -9 -8 -8 -8 -8 -7 -7 -7 -7 -6 -6 -5 -5 -4 -4 -3 -3 -2 -2 ------- Run | Yrd Mat Min Mat Min Mat Gar Mat Gar Fac Gar Fac Gar Fac Gar Fac Gar Fac Gar Res Qua Res Gar Traps Triggered 65 | . . . 1 . . 10 1 7 2 11 . 5 . 4 2 7 2 9 . 2 1 1 Indirectly . | . . . . . . . . . . . . . . . . . . . . . . . Trap Hack Attempts . | . . . . . . . . . . . . . . . . . . . . . . . Triggered . | . . . . . . . . . . . . . . . . . . . . . . . Disarmed . | . . . . . . . . . . . . . . . . . . . . . . . Reprogrammed . | . . . . . . . . . . . . . . . . . . . . . . . Reused . | . . . . . . . . . . . . . . . . . . . . . . . Traps Extracted . | . . . . . . . . . . . . . . . . . . . . . . . Installed . | . . . . . . . . . . . . . . . . . . . . . . . Triggered . | . . . . . . . . . . . . . . . . . . . . . . . Machines | -11 -10 -10 -9 -9 -8 -8 -8 -8 -7 -7 -7 -7 -6 -6 -5 -5 -4 -4 -3 -3 -2 -2 ---------- Run | Yrd Mat Min Mat Min Mat Gar Mat Gar Fac Gar Fac Gar Fac Gar Fac Gar Fac Gar Res Qua Res Gar Machines Disabled 57 | . . 3 1 . 1 3 1 3 3 4 . 1 3 3 6 1 7 7 2 7 . 1 Max in Single Turn 2 | . . 2 1 . 1 1 1 1 2 1 . 1 1 1 2 1 1 2 1 1 . 1 Garrison Relay 21 | . . . . . . 3 . 2 . 4 . 1 . 1 . 1 . 8 . . . 1 Machines Repaired . | . . . . . . . . . . . . . . . . . . . . . . . Machines Dismantled . | . . . . . . . . . . . . . . . . . . . . . . . Machines Sabotaged . | . . . . . . . . . . . . . . . . . . . . . . . Overloaded Fab Kills . | . . . . . . . . . . . . . . . . . . . . . . . Hacking | -11 -10 -10 -9 -9 -8 -8 -8 -8 -7 -7 -7 -7 -6 -6 -5 -5 -4 -4 -3 -3 -2 -2 --------- Run | Yrd Mat Min Mat Min Mat Gar Mat Gar Fac Gar Fac Gar Fac Gar Fac Gar Fac Gar Res Qua Res Gar Machines Accessed 72 | . 7 . 6 1 10 1 7 . 4 1 1 2 9 2 3 1 5 4 3 3 2 . Terminals 50 | . 6 . 5 1 6 1 4 . 3 1 . 2 5 2 2 1 3 4 3 1 . . Fabricators 2 | . . . . . . . . . . . . . 1 . . . . . . . 1 . Repair Stations 4 | . 1 . . . 2 . 1 . . . . . . . . . . . . . . . Recycling Units 1 | . . . . . . . . . . . . . 1 . . . . . . . . . Scanalyzers 5 | . . . 1 . 1 . 1 . . . . . 1 . . . . . . 1 . . Garrison Access 10 | . . . . . 1 . 1 . 1 . 1 . 1 . 1 . 2 . . 1 1 . Total Hacks 152 | . 14 . 14 3 21 1 17 . 6 2 2 5 24 2 6 3 9 6 4 10 3 . Successful 80 | . 8 . 10 1 14 1 7 . 2 . 1 2 13 2 3 1 4 3 1 6 1 . Failed 69 | . 6 . 3 2 7 . 9 . 4 2 1 3 11 . 3 2 5 3 3 3 2 . Catastrophic 16 | . . . . . 2 . 1 . . 2 1 . 5 . . . . 1 2 1 1 . Database Lockouts 3 | . . . 1 . . . 1 . . . . . . . . . . . . 1 . . Manual 72 | . 12 . 11 3 12 . 10 . 2 . 1 . 5 . 4 . 5 . 4 1 2 . Terminals 97 | . 12 . 12 3 10 1 11 . 5 2 . 5 13 2 4 3 3 6 4 1 . . Fabricators 3 | . . . . . . . . . . . . . 1 . . . . . . . 2 . Repair Stations 9 | . 2 . . . 5 . 2 . . . . . . . . . . . . . . . Recycling Units 1 | . . . . . . . . . . . . . 1 . . . . . . . . . Scanalyzers 21 | . . . 2 . 3 . 2 . . . . . 7 . . . . . . 7 . . Garrison Access 21 | . . . . . 3 . 2 . 1 . 2 . 2 . 2 . 6 . . 2 1 . Terminal Hacks 25 | . . . 3 1 . 1 1 . 1 . . 2 5 2 2 1 2 3 1 . . . Robot Analysis 2 | . . . 1 1 . . . . . . . . . . . . . . . . . . Open Door 2 | . . . . . . . . . . . . 1 . . . . . 1 . . . . Branch Access Points 3 | . . . 1 . . . . . . . . . . . 1 . . . 1 . . . Emergency Access Points 2 | . . . . . . . . . . . . . 2 . . . . . . . . . Terminal Index 1 | . . . . . . . . . . . . . 1 . . . . . . . . . Unreport Threat 4 | . . . . . . . 1 . 1 . . . 1 . . . 1 . . . . . Locate Traps 1 | . . . . . . . . . . . . . . . 1 . . . . . . . Recall Investigation 1 | . . . 1 . . . . . . . . . . . . . . . . . . . Zone Layout 2 | . . . . . . . . . . . . . 1 . . . 1 . . . . . Garrison Registry 2 | . . . . . . . . . . . . 1 . 1 . . . . . . . . Patrol Navigation 3 | . . . . . . 1 . . . . . . . . . 1 . 1 . . . . Security Stations 2 | . . . . . . . . . . . . . . 1 . . . 1 . . . . Fabricator Hacks . | . . . . . . . . . . . . . . . . . . . . . . . Repair Station Hacks 7 | . 2 . . . 4 . 1 . . . . . . . . . . . . . . . Scan Component 4 | . 1 . . . 2 . 1 . . . . . . . . . . . . . . . Repair 3 | . 1 . . . 2 . . . . . . . . . . . . . . . . . Recycling Unit Hacks . | . . . . . . . . . . . . . . . . . . . . . . . Scanalyzer 14 | . . . 1 . 1 . 1 . . . . . 6 . . . . . . 5 . . Insert Component 4 | . . . . . . . . . . . . . . . . . . . . 4 . . Retrieve Study 10 | . . . 1 . 1 . 1 . . . . . 6 . . . . . . 1 . . Garrison Access Hacks 10 | . . . . . 1 . 1 . 1 . 1 . 1 . 1 . 2 . . 1 1 . Unlock Access 10 | . . . . . 1 . 1 . 1 . 1 . 1 . 1 . 2 . . 1 1 . Unauthorized Hacks 24 | . 6 . 6 . 8 . 3 . . . . . 1 . . . . . . . . . Terminals 21 | . 6 . 6 . 6 . 3 . . . . . . . . . . . . . . . Operators 3 | . 1 . 1 . 1 . . . . . . . . . . . . . . . . . Skim 18 | . 5 . 5 . 5 . 3 . . . . . . . . . . . . . . . Fabricators . | . . . . . . . . . . . . . . . . . . . . . . . Repair Stations . | . . . . . . . . . . . . . . . . . . . . . . . Recycling Units 1 | . . . . . . . . . . . . . 1 . . . . . . . . . Tunnel 1 | . . . . . . . . . . . . . 1 . . . . . . . . . Scanalyzers . | . . . . . . . . . . . . . . . . . . . . . . . Garrison Access 2 | . . . . . 2 . . . . . . . . . . . . . . . . . Restock 1 | . . . . . 1 . . . . . . . . . . . . . . . . . Reprogram 1 | . . . . . 1 . . . . . . . . . . . . . . . . . Data Cores Recovered 2 | . 1 . . . . . . . . . . . . . . . . . 1 . . . Used 1 | . 1 . . . . . . . . . . . . . . . . . . . . . Hacking Detections 58 | . 6 . 5 1 6 . 6 . 4 1 1 1 8 1 2 1 5 2 3 3 2 . Full Trace Events 3 | . . . . . . . . . . 1 . . . . . . . 1 . . 1 . Feedback Events . | . . . . . . . . . . . . . . . . . . . . . . . Feedback Blocked . | . . . . . . . . . . . . . . . . . . . . . . . Robot Schematics Acquired . | . . . . . . . . . . . . . . . . . . . . . . . Robots Built . | . . . . . . . . . . . . . . . . . . . . . . . Authchips . | . . . . . . . . . . . . . . . . . . . . . . . Time . | . . . . . . . . . . . . . . . . . . . . . . . Total Robot Build Rating . | . . . . . . . . . . . . . . . . . . . . . . . Part Schematics Acquired . | . . . . . . . . . . . . . . . . . . . . . . . Parts Built . | . . . . . . . . . . . . . . . . . . . . . . . Authchips . | . . . . . . . . . . . . . . . . . . . . . . . Time . | . . . . . . . . . . . . . . . . . . . . . . . Total Part Build Rating . | . . . . . . . . . . . . . . . . . . . . . . . Part Studies Acquired 10 | . . . 1 . 1 . 1 . . . . . 6 . . . . . . 1 . . Parts Repaired 3 | . 1 . . . 2 . . . . . . . . . . . . . . . . . Time 90 | . 26 . . . 64 . . . . . . . . . . . . . . . . . Parts Recycled . | . . . . . . . . . . . . . . . . . . . . . . . Recycled Matter . | . . . . . . . . . . . . . . . . . . . . . . . Retrieved Matter . | . . . . . . . . . . . . . . . . . . . . . . . Retrieved Components . | . . . . . . . . . . . . . . . . . . . . . . . Parts Scanalyzed . | . . . . . . . . . . . . . . . . . . . . . . . Part Schematics Acquired . | . . . . . . . . . . . . . . . . . . . . . . . Parts Damaged . | . . . . . . . . . . . . . . . . . . . . . . . Bothacking | -11 -10 -10 -9 -9 -8 -8 -8 -8 -7 -7 -7 -7 -6 -6 -5 -5 -4 -4 -3 -3 -2 -2 ------------ Run | Yrd Mat Min Mat Min Mat Gar Mat Gar Fac Gar Fac Gar Fac Gar Fac Gar Fac Gar Res Qua Res Gar Used RIF Installer 12 | . . . . . . 2 . 2 . 1 . 1 . 2 . 2 . 1 . . . 1 Coupler Efficiency 2 | . . . . . . 1 . . . . . . . . . 1 . . . . . . Hotswap 1 | . . . . . . . . . . . . . . 1 . . . . . . . . Code Merge 2 | . . . . . . . . . . . . . . . . 1 . . . . . 1 Signal Jammer 1 | . . . . . . . . . . . . . . 1 . . . . . . . . Watcher Feeds 1 | . . . . . . . . 1 . . . . . . . . . . . . . . Structural Interface 1 | . . . . . . . . . . 1 . . . . . . . . . . . . Program Shield 1 | . . . . . . . . . . . . 1 . . . . . . . . . . Autoassimilate 1 | . . . . . . . . 1 . . . . . . . . . . . . . . Crosswire 1 | . . . . . . . . . . . . . . . . . . 1 . . . . Robots Hacked 75 | . . . . . . . 2 . 4 4 . 1 8 3 5 7 1 11 14 9 5 1 Non-combat 15 | . . . . . . . 1 . 2 . . . 5 . 2 . 1 . 2 2 . . Combat 60 | . . . . . . . 1 . 2 4 . 1 3 3 3 7 . 11 12 7 5 1 Autoassimilated 16 | . . . . . . . . . . 4 . 1 . 2 1 1 . 3 1 3 . . Robot Hacks Applied 76 | . . . . . . . 3 . 4 . . . 13 1 4 7 1 8 22 6 6 1 no_distress 1 | . . . . . . . . . . . . . 1 . . . . . . . . . hold_bot 1 | . . . . . . . . . . . . . . . . . 1 . . . . . drop_inventory 4 | . . . . . . . . . 1 . . . 1 . 2 . . . . . . . purge_threat 11 | . . . . . . . . . . . . . 5 . . . . . 6 . . . locate_traps 1 | . . . . . . . . . . . . . 1 . . . . . . . . . block_reporting 1 | . . . . . . . . . . . . . . . . . . . 1 . . . clear_repairs 1 | . . . . . . . . . . . . . . . . . . . 1 . . . map_route 2 | . . . . . . . . . . . . . 1 . . . . . . 1 . . find_garrison 3 | . . . . . . . 1 . . . . . . . . . . . 1 . 1 . amplify_resonance 5 | . . . . . . . . . . . . . . . . 1 . 1 2 . 1 . reboot_system 5 | . . . . . . . . . 1 . . . . . . 1 . . 2 . 1 . overwrite_iff 6 | . . . . . . . 1 . . . . . 1 . . . . 1 . 1 1 1 formatsys_low 5 | . . . . . . . 1 . 1 . . . 1 . . . . . 1 1 . . formatsys_high 30 | . . . . . . . . . 1 . . . 2 1 2 5 . 6 8 3 2 . Relay Couplers Released 88 | . . . . . . 13 . 8 . 15 . 5 . 3 . 5 . 34 . . . 5 Machine Destruction 88 | . . . . . . 13 . 8 . 15 . 5 . 3 . 5 . 34 . . . 5 Attached 31 | . . . . . . . 2 . 2 2 . . 4 . 1 4 1 9 2 1 . 3 Crosswired 21 | . . . . . . . . . . . . . . . . . . 18 . . . 3 Merged Code Value 43 | . . . . . . . . . . . . . . . . . . . . . . 43 Fabnet Peak Effective % . | . . . . . . . . . . . . . . . . . . . . . . . Robots Rewired 25 | . . . . . . . . . . 9 . 4 . . . 2 1 9 . . . . Allies Hacked 3 | . . . . . . . . . . . . . . . . . . 1 1 1 . . Hacks Repelled . | . . . . . . . . . . . . . . . . . . . . . . . Allies | -11 -10 -10 -9 -9 -8 -8 -8 -8 -7 -7 -7 -7 -6 -6 -5 -5 -4 -4 -3 -3 -2 -2 -------- Run | Yrd Mat Min Mat Min Mat Gar Mat Gar Fac Gar Fac Gar Fac Gar Fac Gar Fac Gar Res Qua Res Gar Total Allies 87 | . . . . . 1 . 2 . 2 13 . 5 4 5 3 8 1 21 10 8 3 1 Largest Group 16 | . . . . . 1 1 1 . 1 10 6 6 4 5 2 6 7 16 14 9 1 1 Highest-Rated Group 960 | . . . . . 21 21 16 . 21 175 119 119 91 262 76 394 443 960 795 407 58 30 Highest-Rated Ally 119 | . . . . . 21 21 16 . 21 21 21 29 41 95 47 119 119 119 119 64 58 30 Total Orders 10 | . . . . . . . . . 3 . . . . . . 2 . 4 1 . . . STAY 4 | . . . . . . . . . 1 . . . . . . . . 3 . . . . ROAM 1 | . . . . . . . . . . . . . . . . 1 . . . . . . FOLLOW 1 | . . . . . . . . . . . . . . . . . . 1 . . . . GUARD 1 | . . . . . . . . . . . . . . . . 1 . . . . . . AID 3 | . . . . . . . . . 2 . . . . . . . . . 1 . . . Ally Attacks 524 | . . . . . . 10 2 . 2 76 . 65 32 44 13 29 38 61 76 61 13 2 Total Damage 15568 | . . . . . . 214 28 . 44 940 . 965 677 1785 260 975 1192 3043 2913 2109 423 . Kills 117 | . . . . . . 3 . . . 13 . 11 5 12 1 13 14 17 20 5 3 . Allies Corrupted 10 | . . . . . . . . . . . . . 1 . . . 1 3 4 . 1 . Allies Melted . | . . . . . . . . . . . . . . . . . . . . . . . Intel | -11 -10 -10 -9 -9 -8 -8 -8 -8 -7 -7 -7 -7 -6 -6 -5 -5 -4 -4 -3 -3 -2 -2 ------- Run | Yrd Mat Min Mat Min Mat Gar Mat Gar Fac Gar Fac Gar Fac Gar Fac Gar Fac Gar Res Qua Res Gar Active Infowar (turns) 8979 | . 931 1171 525 . . . . . . . . . 1015 . 1304 9 14 . 1052 2780 178 . Optics 2627 | . 931 1171 525 . . . . . . . . . . . . . . . . . . . Sensors 5457 | . . . . . . . . . . . . . 336 . 1266 9 14 . 1052 2780 . . Structural 178 | . . . . . . . . . . . . . . . . . . . . . 178 . Jamming 737 | . . . . . . . . . . . . . 679 . 38 . . . . . 20 . Robot Analysis Total 2 | . . . 1 1 . . . . . . . . . . . . . . . . . . Derelict Logs Recovered 3 | . . 2 . 1 . . . . . . . . . . . . . . . . . . Drone Launches . | . . . . . . . . . . . . . . . . . . . . . . . Drone Recoveries . | . . . . . . . . . . . . . . . . . . . . . . . Exploration | -11 -10 -10 -9 -9 -8 -8 -8 -8 -7 -7 -7 -7 -6 -6 -5 -5 -4 -4 -3 -3 -2 -2 ------------- Run | Yrd Mat Min Mat Min Mat Gar Mat Gar Fac Gar Fac Gar Fac Gar Fac Gar Fac Gar Res Qua Res Gar Turns Passed 29664 | 43 1017 1171 1259 791 2009 1428 872 1586 809 1964 23 1166 1543 987 1434 1169 841 2273 1053 5184 616 426 Spaces Moved 12924 | 33 564 372 549 548 838 845 451 681 379 935 15 556 854 521 864 593 478 1187 420 721 439 81 Core 396 | 5 . . . . . . . . . . . . . . . . . . . 180 130 81 Treads . | . . . . . . . . . . . . . . . . . . . . . . . Legs . | . . . . . . . . . . . . . . . . . . . . . . . Wheels 12528 | 28 564 372 549 548 838 845 451 681 379 935 15 556 854 521 864 593 478 1187 420 541 309 . Hover . | . . . . . . . . . . . . . . . . . . . . . . . Flight . | . . . . . . . . . . . . . . . . . . . . . . . Fastest Speed 50 | 50 100 115 115 130 140 140 140 140 160 145 160 145 135 135 150 135 135 135 195 50 50 50 Average Speed 176 | 98 108 115 131 130 144 140 140 143 160 159 160 158 146 147 150 163 159 153 195 680 84 354 Slowest Speed 3600 | 100 115 115 205 130 145 235 140 195 160 160 160 160 160 150 150 165 165 180 195 3600 350 700 Overloaded Moves . | . . . . . . . . . . . . . . . . . . . . . . . Propulsion Burnouts . | . . . . . . . . . . . . . . . . . . . . . . . Robots Hopped . | . . . . . . . . . . . . . . . . . . . . . . . Potential Cave-ins . | . . . . . . . . . . . . . . . . . . . . . . . Cave-ins Triggered . | . . . . . . . . . . . . . . . . . . . . . . . Teleports 4 | . . . . . . . . . . . . . . . . . . . . 3 . 1 Exploration Rate (%) 49 | 3 91 88 48 97 72 60 47 62 18 75 1 65 18 84 21 56 12 92 25 67 14 15 Regions Visited 22 Branch Regions 3 Pre-discovered Areas 8 | . 1 2 . 1 3 . . . . . . . 1 . . . . . . . . . Known Exits Taken 12 | . . 1 1 . 1 . 1 . 1 . 1 . 1 . 1 . 1 . 1 1 1 . Unknown Exits Taken 3 | 1 1 . . 1 . . . . . . . . . . . . . . . . . . Scrap Searched 2 | . . 1 . 1 . . . . . . . . . . . . . . . . . . Spaces Dug 30 | . . . 5 . 2 2 . . 1 . . . . 1 10 . . 1 5 3 . . Terrain Destroyed 337 | . . 39 18 . 13 2 . . 49 4 . . 56 4 49 11 3 4 13 69 3 . Melee 13 | . . . 5 . 2 2 . . 1 . . . . . . . . . . 3 . . Projectile 70 | . . . 4 . . . . . . . . . 2 4 17 11 3 4 13 9 3 . AOE 254 | . . 39 9 . 11 . . . 48 4 . . 54 . 32 . . . . 57 . . Terrain Rammed . | . . . . . . . . . . . . . . . . . . . . . . . Walls Destroyed . | . . . . . . . . . . . . . . . . . . . . . . . Machines Disabled . | . . . . . . . . . . . . . . . . . . . . . . . Actions | -11 -10 -10 -9 -9 -8 -8 -8 -8 -7 -7 -7 -7 -6 -6 -5 -5 -4 -4 -3 -3 -2 -2 --------- Run | Yrd Mat Min Mat Min Mat Gar Mat Gar Fac Gar Fac Gar Fac Gar Fac Gar Fac Gar Res Qua Res Gar Total 18201 | 40 864 1080 933 582 1508 1001 628 1128 524 1274 14 736 1047 690 963 721 540 1595 607 933 576 217 Wait 3142 | . 230 677 245 8 535 46 110 288 93 74 . 29 100 84 54 11 15 205 113 94 12 119 Move 12896 | 32 563 371 548 547 837 843 450 679 378 933 14 554 853 519 863 591 477 1185 419 721 438 81 Hop . | . . . . . . . . . . . . . . . . . . . . . . . Pick Up 175 | 1 12 1 15 5 20 5 8 12 1 19 . 7 4 9 3 8 1 20 5 12 3 4 Fast Attach 123 | 6 3 . 6 . 10 . 3 1 1 4 . 7 4 6 4 7 6 3 2 9 37 4 Attach 86 | . . 3 14 . 1 3 2 7 3 7 . . 8 7 1 3 1 . 3 16 4 3 Detach 16 | . . . 2 . 1 . 1 . . 1 . 1 . 1 1 . . . . 3 4 1 Swap 104 | 1 4 6 5 . 14 6 10 3 8 13 . 3 5 3 . 5 1 14 3 . . . Drop 198 | . 1 1 8 . 28 4 11 10 . 22 . 14 4 14 4 13 8 23 3 16 12 2 Fire 873 | . 51 21 36 22 60 33 29 75 23 56 . 40 67 31 33 49 15 57 57 57 58 3 Melee 145 | . . . 54 . 2 5 3 . 7 14 . 18 . . . 10 . 19 . 5 8 . Ram 3 | . . . . . . . . . . 1 . . . . . . . . 2 . . . Kick . | . . . . . . . . . . . . . . . . . . . . . . . Crush . | . . . . . . . . . . . . . . . . . . . . . . . Escape Stasis 323 | . . . . . . 56 . 53 8 70 . 32 . 16 . 24 8 56 . . . . Rewire 117 | . . . . . . . 1 . 2 60 . 31 2 . . . 8 13 . . . . Trap . | . . . . . . . . . . . . . . . . . . . . . . . Miscellaneous . | . . . . . . . . . . . . . . . . . . . . . . . Route ------- -11/Scrapyard -10/Materials (discovered 6 exits: *Mat x3 / [*Min x2] / Sub) -10/Mines (discovered 4 exits: *Mat x2 / [*Exi] / *Sub) -9/Materials -9/Mines (discovered 2 exits: *Mat x2) -8/Materials (discovered 3 exits: *Fac x2 / Gar) -8/Garrison (discovered 2 exits: *Mat x2) -8/Materials -8/Garrison (discovered 2 exits: *Fac x2) -7/Factory (discovered 5 exits: Fac x2 / [*Low x2] / Gar) -7/Garrison (discovered 3 exits: *Fac x3) -7/Factory -7/Garrison (discovered 3 exits: *Fac x3) -6/Factory (discovered 3 exits: *Fac / *Low / Gar) -6/Garrison (discovered 3 exits: *Fac x3) -5/Factory (discovered 5 exits: *Fac x2 / Upp x2 / Gar) -5/Garrison -4/Factory (discovered 2 exits: Gar / Gar) -4/Garrison (discovered 3 exits: *Res x3) -3/Research (discovered 4 exits: *Res / Arm / *Qua x2) -3/Quarantine (discovered 2 exits: *Res / Gar) -2/Research -2/Garrison History --------- Turn | Location | Event 25 | -11/Scrapyard | Discovered new exit (range 15) 44 | -11/Scrapyard | Entered Materials 119 | -10/Materials | Discovered new exit (range 16) 244 | -10/Materials | Discovered new exit (range 11) 303 | -10/Materials | Build established: Mutant 336 | -10/Materials | Discovered new exit (range 12) 493 | -10/Materials | Repaired Com. Wheel 587 | -10/Materials | Discovered new exit (range 15) 744 | -10/Materials | Identified exit to Materials 803 | -10/Materials | Loaded intel: 8 terminal locations 851 | -10/Materials | Learned location of 1 exit from Recycling 890 | -10/Materials | Identified exit to Subcaves 918 | -10/Materials | Learned Storage stockpile data 1004 | -10/Materials | Learned 2 Mines zone layouts 1061 | -10/Materials | Entered Mines 1064 | -10/Mines | Assembled infested the area 1069 | -10/Mines | Assisted by a Guerilla fighting off Assembled 1146 | -10/Mines | Discovered exit to Subcaves (range 6) 1737 | -10/Mines | Learned location of Recycling (-7) 1799 | -10/Mines | Core integrity fell below 50% 1917 | -10/Mines | A weapon hastily lodged in a ceiling crevice suddenly fell to the ground 1935 | -10/Mines | Deemed a non-threat by the Exiles lab entrance 1935 | -10/Mines | Discovered new exit (range 5) 1970 | -10/Mines | Core integrity fell below 20% 1984 | -10/Mines | Discovered exit to Materials (range 3) 2110 | -10/Mines | Learned location of Zion (-7) 2232 | -10/Mines | Entered Materials 2232 | -9/Materials | Evolved 2 slots: Utility x2 2264 | -9/Materials | Identified exit to Mines 2513 | -9/Materials | Lost 5 parts (1p2n2w) 2539 | -9/Materials | Central database locked down 3120 | -9/Materials | Core integrity fell below 50% 3491 | -9/Materials | Entered Mines 3506 | -9/Mines | Met a Derelict bent on vengeance 3559 | -9/Mines | Discovered new exit (range 15) 3614 | -9/Mines | Build established: Scavenger-Mutant 3696 | -9/Mines | Core integrity fell below 20% 3805 | -9/Mines | Received a Rocket Launcher from a helpful Derelict 3853 | -9/Mines | Discovered new exit (range 11) 4282 | -9/Mines | Entered Materials 4282 | -8/Materials | Evolved 2 slots: Utility x1, Weapon x1 4605 | -8/Materials | Build established: Scavenger-Tank 4669 | -8/Materials | Repaired Beam Rifle 4878 | -8/Materials | Repaired Beam Rifle 4948 | -8/Materials | Discovered new exit (range 15) 5628 | -8/Materials | Discovered new exit (range 12) 5745 | -8/Materials | Build established: Tank 5852 | -8/Materials | Learned 4 Factory zone layouts 5918 | -8/Materials | Learned location of 1 exit from Extension 5933 | -8/Materials | Learned location of 2 exits from Factory 5937 | -8/Materials | Learned Storage trap positions 5938 | -8/Materials | Learned 2 Storage zone layouts 5943 | -8/Materials | Learned Factory emergency access door positions 5981 | -8/Materials | Learned 2 Lower Caves zone layouts 6015 | -8/Materials | Learned Storage trap positions 6272 | -8/Materials | Identified exit to Garrison 6291 | -8/Materials | Entered Garrison 6291 | -8/Garrison | Accompanied by 1 ally 6349 | -8/Garrison | Triggered checkpoint 6447 | -8/Garrison | Garrison Relay disabled 6603 | -8/Garrison | Triggered checkpoint 6710 | -8/Garrison | Discovered new exit (range 10) 6819 | -8/Garrison | Triggered checkpoint 6823 | -8/Garrison | Garrison Relay disabled 6999 | -8/Garrison | Triggered checkpoint 7049 | -8/Garrison | Installed Relay Interface Framework 7062 | -8/Garrison | Garrison Relay disabled 7107 | -8/Garrison | Triggered checkpoint 7187 | -8/Garrison | Discovered new exit (range 12) 7229 | -8/Garrison | Expanded RIF knowledge: Coupler Efficiency 7259 | -8/Garrison | Identified exit to Materials 7719 | -8/Garrison | Entered Materials 7806 | -8/Materials | Build established: Bothacker-Tank 7975 | -8/Materials | Central database locked down 8186 | -8/Materials | Identified exit to Garrison 8233 | -8/Materials | Build established: Tank 8591 | -8/Materials | Entered Garrison 8699 | -8/Garrison | Triggered checkpoint 8767 | -8/Garrison | Expanded RIF knowledge: Watcher Feeds 8810 | -8/Garrison | Garrison Relay disabled 8869 | -8/Garrison | Triggered checkpoint 9163 | -8/Garrison | Triggered checkpoint 9266 | -8/Garrison | Triggered checkpoint 9365 | -8/Garrison | Discovered new exit (range 10) 9443 | -8/Garrison | Lost 3 parts (1p1n1u) 9476 | -8/Garrison | Expanded RIF knowledge: Autoassimilate 9502 | -8/Garrison | Identified exit to Factory 9623 | -8/Garrison | Triggered checkpoint 9624 | -8/Garrison | Core integrity fell below 50% 10031 | -8/Garrison | Build established: Bothacker-Tank 10035 | -8/Garrison | Discovered exit to Factory (range 10) 10050 | -8/Garrison | Triggered checkpoint 10112 | -8/Garrison | Garrison Relay disabled 10177 | -8/Garrison | Entered Factory 10177 | -7/Factory | Evolved 2 slots: Utility x2 10178 | -7/Factory | Identified exit to Factory 10407 | -7/Factory | Discovered new exit (range 22) 10654 | -7/Factory | Discovered new exit (range 34) 10947 | -7/Factory | Identified exit to Garrison 10986 | -7/Factory | Entered Garrison 10986 | -7/Garrison | Accompanied by 1 ally 11050 | -7/Garrison | Triggered checkpoint 11079 | -7/Garrison | Garrison Relay disabled 11212 | -7/Garrison | Triggered checkpoint 11217 | -7/Garrison | Triggered checkpoint 11288 | -7/Garrison | Build established: Botlord-Gunner 11322 | -7/Garrison | Triggered checkpoint 11439 | -7/Garrison | Triggered checkpoint 11657 | -7/Garrison | Garrison Relay disabled 11952 | -7/Garrison | Triggered checkpoint 11970 | -7/Garrison | Triggered checkpoint 12007 | -7/Garrison | Discovered new exit (range 10) 12008 | -7/Garrison | Triggered checkpoint 12033 | -7/Garrison | Identified exit to Factory 12282 | -7/Garrison | Triggered checkpoint 12371 | -7/Garrison | Discovered exit to Factory (range 11) 12424 | -7/Garrison | Triggered checkpoint 12533 | -7/Garrison | Garrison Relay disabled 12704 | -7/Garrison | Discovered exit to Factory (range 10) 12744 | -7/Garrison | Triggered checkpoint 12776 | -7/Garrison | Garrison Relay disabled 12811 | -7/Garrison | Expanded RIF knowledge: Structural Interface 12950 | -7/Garrison | Entered Factory 12950 | -7/Factory | Accompanied by 6 allies 12963 | -7/Factory | Identified exit to Garrison 12973 | -7/Factory | Entered Garrison 12973 | -7/Garrison | Accompanied by 6 allies 13001 | -7/Garrison | Expanded RIF knowledge: Program Shield 13122 | -7/Garrison | Garrison Relay disabled 13279 | -7/Garrison | Triggered checkpoint 13353 | -7/Garrison | Discovered exit to Factory (range 14) 13433 | -7/Garrison | Triggered checkpoint 13705 | -7/Garrison | Triggered checkpoint 13863 | -7/Garrison | Triggered checkpoint 13905 | -7/Garrison | Triggered checkpoint 14005 | -7/Garrison | Discovered exit to Factory (range 51) 14005 | -7/Garrison | Discovered exit to Factory (range 25) 14005 | -7/Garrison | Discovered exit to Factory (range 19) 14016 | -7/Garrison | Build established: Botlord-Tank 14139 | -7/Garrison | Entered Factory 14139 | -6/Factory | Accompanied by 4 allies 14139 | -6/Factory | Evolved 2 slots: Utility x2 14158 | -6/Factory | Discovered new exit (range 32) 14286 | -6/Factory | Identified exit to Garrison 14766 | -6/Factory | Lost 3 parts (2u1w) 14833 | -6/Factory | Lost 3 allies 15224 | -6/Factory | Identified exit to Lower Caves 15373 | -6/Factory | P-60 Hacker assimilated allied Administrator 5a 15509 | -6/Factory | Discovered new exit (range 6) 15514 | -6/Factory | Identified exit to Factory 15639 | -6/Factory | Build established: Botlord-Skirmisher 15682 | -6/Factory | Entered Garrison 15688 | -6/Garrison | Found embedded Infiltrators 15740 | -6/Garrison | Triggered checkpoint 15762 | -6/Garrison | Garrison Relay disabled 15842 | -6/Garrison | Triggered checkpoint 15860 | -6/Garrison | Triggered checkpoint 15904 | -6/Garrison | Triggered checkpoint 15947 | -6/Garrison | Expanded RIF knowledge: Signal Jamming 16002 | -6/Garrison | Discovered exit to Factory (range 14) 16058 | -6/Garrison | Build established: Botlord-Tank 16161 | -6/Garrison | Expanded RIF knowledge: Hotswap 16190 | -6/Garrison | Discovered exit to Factory (range 12) 16214 | -6/Garrison | Discovered exit to Factory (range 43) 16214 | -6/Garrison | Discovered exit to Factory (range 49) 16214 | -6/Garrison | Discovered exit to Factory (range 23) 16218 | -6/Garrison | Triggered checkpoint 16354 | -6/Garrison | Triggered checkpoint 16428 | -6/Garrison | Triggered checkpoint 16513 | -6/Garrison | Learned Factory security intel 16669 | -6/Garrison | Entered Factory 16669 | -5/Factory | Evolved 2 slots: Utility x2 16804 | -5/Factory | Build established: Botlord-Gunner 16911 | -5/Factory | Identified exit to Garrison 17104 | -5/Factory | Discovered new exit (range 14) 17118 | -5/Factory | Build established: Botlord-Skirmisher 17132 | -5/Factory | Identified exit to Factory 17371 | -5/Factory | Discovered exit to Factory (range 12) 17509 | -5/Factory | Identified exit to Upper Caves 18103 | -5/Factory | Entered Garrison 18144 | -5/Garrison | Expanded RIF knowledge: Coupler Efficiency 18335 | -5/Garrison | Spotted B-75 Beast 18345 | -5/Garrison | Assimilated Beast 6a with formatsys_high 18347 | -5/Garrison | Triggered checkpoint 18348 | -5/Garrison | Triggered checkpoint 18387 | -5/Garrison | Triggered checkpoint 18415 | -5/Garrison | Triggered checkpoint 18625 | -5/Garrison | Triggered checkpoint 18658 | -5/Garrison | Expanded RIF knowledge: Code Merge 18717 | -5/Garrison | Garrison Relay disabled 18796 | -5/Garrison | Discovered exit to Factory (range 13) 18823 | -5/Garrison | Build established: Botlord-Gunner 19058 | -5/Garrison | Rewired Executioner 19062 | -5/Garrison | Rewired Executioner 19272 | -5/Garrison | Entered Factory 19272 | -4/Factory | Accompanied by 6 allies 19272 | -4/Factory | Evolved 2 slots: Utility x2 19331 | -4/Factory | Identified exit to Garrison 19772 | -4/Factory | First assault squad dispatched 19913 | -4/Factory | Lost 4 allies 19919 | -4/Factory | Identified exit to Garrison 20113 | -4/Factory | Entered Garrison 20113 | -4/Garrison | Accompanied by 1 ally 20221 | -4/Garrison | Garrison Relay disabled 20226 | -4/Garrison | Garrison Relay disabled 20226 | -4/Garrison | Garrison Relay disabled 20231 | -4/Garrison | Garrison Relay disabled 20361 | -4/Garrison | Triggered checkpoint 20398 | -4/Garrison | Expanded RIF knowledge: Crosswire 20449 | -4/Garrison | Garrison Relay disabled 20634 | -4/Garrison | Found embedded Infiltrators 20651 | -4/Garrison | Triggered checkpoint 20675 | -4/Garrison | Triggered checkpoint 20824 | -4/Garrison | Spotted B-86 Titan 20831 | -4/Garrison | Assimilated Titan 7a with formatsys_high 20839 | -4/Garrison | Rewired Executioner 20849 | -4/Garrison | Rewired Executioner 21110 | -4/Garrison | Discovered new exit (range 12) 21125 | -4/Garrison | Triggered checkpoint 21197 | -4/Garrison | Garrison Relay disabled 21253 | -4/Garrison | Spotted B-75 Beast 21257 | -4/Garrison | Spotted B-75 Beast 21258 | -4/Garrison | Autoassimilated Beast 7a with RIF 21265 | -4/Garrison | Rewired B-86 Titan 21266 | -4/Garrison | Destroyed B-75 Beast 21393 | -4/Garrison | Triggered checkpoint 21455 | -4/Garrison | Discovered new exit (range 13) 21474 | -4/Garrison | Identified exit to Research 21554 | -4/Garrison | Learned Research security intel 21573 | -4/Garrison | Triggered checkpoint 21617 | -4/Garrison | Garrison Relay disabled 21713 | -4/Garrison | Triggered checkpoint 21846 | -4/Garrison | Discovered exit to Research (range 12) 21891 | -4/Garrison | Triggered checkpoint 21915 | -4/Garrison | Garrison Relay disabled 22281 | -4/Garrison | Build established: Botlord-Mutant 22386 | -4/Garrison | Entered Research 22386 | -3/Research | Accompanied by 14 allies 22386 | -3/Research | Evolved 2 slots: Utility x2 22549 | -3/Research | Discovered new exit (range 7) 22561 | -3/Research | Identified exit to Research 22590 | -3/Research | Found Prototype Processor 22590 | -3/Research | Identified Exp. Core Analyzer 22636 | -3/Research | First assault squad dispatched 22896 | -3/Research | Build established: Botlord-Gunner 23028 | -3/Research | Lost 9 allies 23065 | -3/Research | Identified exit to Armory 23065 | -3/Research | Identified exit to Quarantine 23311 | -3/Research | Spotted B-90 Cyclops 23334 | -3/Research | Destroyed B-90 Cyclops 23439 | -3/Research | Entered Quarantine 23439 | -3/Quarantine | Accompanied by 7 allies 23549 | -3/Quarantine | Cryocooling Duct disabled 23564 | -3/Quarantine | Ambient heat levels rising (+20) 23564 | -3/Quarantine | Non-combat units ordered to evacuate 23731 | -3/Quarantine | Found Alien Artifact 23927 | -3/Quarantine | Lost 5 allies 23960 | -3/Quarantine | Found Alien Artifact 23969 | -3/Quarantine | Found Alien Artifact 23981 | -3/Quarantine | Found Alien Artifact 23984 | -3/Quarantine | Found Alien Artifact 23987 | -3/Quarantine | Found Alien Artifact 24126 | -3/Quarantine | Cryocooling Duct disabled 24141 | -3/Quarantine | Ambient heat levels rising (+20) 24141 | -3/Quarantine | Combat units ordered to evacuate 24241 | -3/Quarantine | Quarantine Guard activated 24323 | -3/Quarantine | Found Alien Artifact 24343 | -3/Quarantine | Spotted Quarantine Guard 24349 | -3/Quarantine | Spotted Quarantine Guard 24353 | -3/Quarantine | Destroyed Quarantine Guard 24355 | -3/Quarantine | Identified Hpw. Transdimensional Reconstructor 24355 | -3/Quarantine | Warped through subspace 24383 | -3/Quarantine | Spotted Quarantine Guard 24403 | -3/Quarantine | Destroyed Quarantine Guard 24496 | -3/Quarantine | Spotted Quarantine Guard 24507 | -3/Quarantine | Spotted Quarantine Guard 24520 | -3/Quarantine | Destroyed Quarantine Guard 24524 | -3/Quarantine | Destroyed Quarantine Guard 24802 | -3/Quarantine | Build established: Botlord-Mutant 26511 | -3/Quarantine | Destroyed Quarantine Guard 26605 | -3/Quarantine | Identified Core Reset Matrix 26605 | -3/Quarantine | Identified Dimensional Node Initializer 26605 | -3/Quarantine | Identified Subatomic Replicator 26605 | -3/Quarantine | Identified Transdimensional Reconstructor (x3) 26605 | -3/Quarantine | Central database locked down 26823 | -3/Quarantine | Found Alien Impact Weapon 26920 | -3/Quarantine | Spotted Quarantine Guard 26970 | -3/Quarantine | Destroyed Quarantine Guard 26986 | -3/Quarantine | Lost 5 parts (1p1n2u1w) 27350 | -3/Quarantine | Identified exit to Garrison 27566 | -3/Quarantine | Spotted Quarantine Guard 27593 | -3/Quarantine | Core integrity fell below 50% 27599 | -3/Quarantine | Warped through subspace 27599 | -3/Quarantine | Spotted Quarantine Guard 27617 | -3/Quarantine | Lost 4 parts (2u2w) 28528 | -3/Quarantine | Discovered exit to Research (range 14) 28528 | -3/Quarantine | Spotted Quarantine Guard 28554 | -3/Quarantine | Core integrity fell below 20% 28555 | -3/Quarantine | Warped through subspace 28555 | -3/Quarantine | Spotted Quarantine Guard 28600 | -3/Quarantine | Lost 4 parts (4u) 28602 | -3/Quarantine | Spotted Quarantine Guard 28623 | -3/Quarantine | Entered Research 28623 | -2/Research | Evolved 2 slots: Utility x2 28696 | -2/Research | Lost 4 parts (3u1w) 28836 | -2/Research | Core integrity fell below 50% 28854 | -2/Research | Lost 7 parts (1p1n2u3w) 29106 | -2/Research | Lost 7 parts (2n4u1w) 29192 | -2/Research | Released all parts (10) 29212 | -2/Research | Core integrity fell below 20% 29223 | -2/Research | Lost 3 parts (2n1u) 29238 | -2/Research | Identified exit to Garrison 29239 | -2/Research | Entered Garrison 29254 | -2/Garrison | Expanded RIF knowledge: Code Merge 29367 | -2/Garrison | Triggered checkpoint 29481 | -2/Garrison | Build established: Mutant 29588 | -2/Garrison | Garrison Relay disabled 29661 | -2/Garrison | Warped through subspace 29665 | -2/Garrison | Destroyed by G-73 Enforcer with Heavy Laser Last Messages --------------- 29637_ RIF reveals location of phase wall. 29651_ Penetrated by Slug. 29651_ Slug penetrates Wall. 29654_ Penetrated by Slug. 29658_ S>3NGGHQCZVHAJ E=K5N &|ALZFQ 29658_ Penetrated by Slug. 29658_ Slug penetrates Wall. 29658_ Penetrated by Slug. 29660_ Jacked S-43 Plague... >>overwrite_iff Rewriting IFF filter. 29661_ Penetrated by Slug. 29661_ Imp. Remote Datajack destroyed. 29661_ Penetrated by Slug. 29661_ Warped through subspace. 29661_ RIF reveals location of phase wall. 29662_ Critical hit (Burn: +37). 29662_ Dropped Hvy. Mass Driver. 29663_ Dropped Lrg. Storage Unit. 29664_ Acquired Subatomic Replicator. Map ----- +----------------------------------------------------+ | ?????????????????????????????????????????????????? | | ?????????????????????????????????????????????????? | | ?????????????????????????????????????????????????? | | ?????????????????????????????????????????????????? | | ?????????????????????????????????????????????????? | | ?????????????????????????????????????????????????? | | ?????????????????????????????????????????????????? | | ?????????????????????????????????????????????????? | | ?????????????????????????????????????????????????? | | ???????????????????????? ??????????????????????? | | ???????????????????????? ??????????????????????? | | ???????????????????????? #?????????????????????? | | ???????????????????????" ?????????????????????? | | ???????????????????????" g?????????????????????? | | ???????????????????????" g?????????????????????? | | ???????????????????????" g ?????????????????????? | | ???????????????????????# #?????????????????????? | | ???????????????????????# ##????????????????????? | | ???????????????????????+ ????????????????????? | | ???????????????????????+ ?????????????????????? | | ???????????????????????# ?????????????????????? | | ???????????????????????# #?????????????????????? | | ???????????????????????# #?????????????????????? | | ???????????????????????# ! #?????????????????????? | | ???????????????????????#]]]#?????????????????????? | | ???????????????????????+ @ +?????????????????????? | | ???????????????????????# #?????????????????????? | | ???????????????????????# #?????????????????????? | | ###############????????# #?????????????????????? | | " + ????? #?????????????????????? | | " + ????? #?????????????????????? | | ### ???? #?????????????????????? | | #?? #########???????######?????????????????????? | | #??? #??????????????????????????????????????????? | | #??? #??????????????????????????????????????????? | | #???? #??????????????????????????????????????????? | | #???? #??????????????????????????????????????????? | | #?????#??????????????????????????????????????????? | | #????????????????????????????????????????????????? | | #?? #??????????????????????????????????????????? | | #?? #??????????????????????????????????????????? | | #?? #??? ?????????????????????????????????????? | | #?? #?? ??????????????????????????????????????? | | #?? #? ???????????????????????????????????????? | | #?# ## ????????????????????????????????????????? | | ? ?????????????????????????????????????????? | | ??????????????????????????????????????????? | | ### #??????????????????????????????????????????? | | ??# #??????????????????????????????????????????? | | ??# #??????????????????????????????????????????? | +----------------------------------------------------+ Best States ------------- Heat Dissipation 84 Energy Generation 31 Energy Capacity 1100 Matter Stores 300 Matter Capacity 300 Sight Range 18 Robot Scan Range 18 Terrain Scan Density 210 Jamming Range 14 Power Amplification 30 Base Temperature (-) 100 Armor Coverage 600 Weapon Cycling 20 Phase Shifting 15 Evasion (%) 55 Targeting Accuracy 16 Core Analysis 8 Offensive Hacking 14 Defensive Hacking 10 Relay Coupler Types 8 Relay Coupler Value 170 Item Schematics ----------------- None Robot Schematics ------------------ None Fabricated ------------ Nothing Repaired ---------- Com. Wheel | 33% | -10/Materials Beam Rifle | 56% | -8/Materials Beam Rifle | 58% | -8/Materials Studied --------- Wheel | -9/Materials | Hacked Com. Wheel | -8/Materials | Hacked Imp. Grenade Launcher | -8/Materials | Hacked Arm. Huge Wheel | -6/Factory | Hacked Remote Datajack | -6/Factory | Hacked Plasma Rifle | -6/Factory | Hacked Rnf. Deuterium Engine | -6/Factory | Hacked Katana | -6/Factory | Hacked Plasma Cutter | -6/Factory | Hacked Hvy. Linear Accelerator | -3/Quarantine | Hacked Alien Tech Used ----------------- High-powered Transdimensional Reconstructor Transdimensional Reconstructor Achievements -------------- None Challenges ------------ None Game ------ Seed ChipDerelictLauncher Manual? 0 Play Time 02:37:33 Cumulative 597.0 hours Start 2025.11.27 @ 22:03:19 End 2025.11.30 @ 17:07:16 Sessions 3 Manual Loads 0 Difficulty Rogue Special Mode None Game No. 922 Rogue 767 Adventurer 148 Explorer 7 Win Type - Total 29 Types 21/1/4/1/0/0/1/0/0/1 Lore% 81 Gallery% 85 Achievement% 74 Wizard Run 0 Options --------- Layout 1 ASCII 0 Keyboard 0 Movement Numpad Keybinds 0 Fullscreen 2 Font 24/Smallcaps Map View 50x40 Zoom Use 0% Tactical HUD 1 Map Filters NONE Filters NONE Steam 1 RUN: fb3a8501-4a25-4e6d-95e9-bb0e332ef0fb